fUST/lending_fUST_20250814
["ID","MTS","AMOUNT","RATE_DAILY","PERIOD"]
[379111087,1755147051846,-460.0,0.00018498,2]
[379111088,1755147051855,-151.0,0.00018498,2]
[379111089,1755147051864,-610.75,0.00018498,2]
[379111090,1755147051875,-460.0,0.00018498,2]
[379111091,1755147051885,-460.0,0.00018498,2]
[379111092,1755147051895,-460.0,0.00018498,2]
[379111093,1755147051904,-460.0,0.00018498,2]
[379111094,1755147051913,-460.0,0.00018498,2]
[379111095,1755147051923,-460.0,0.00018498,2]
[379111096,1755147051932,-257.678167,0.00018498,2]
[379111097,1755147051941,-257.678167,0.00018498,2]
[379111098,1755147051951,-460.0,0.00018498,2]
[379111099,1755147051961,-406.86221073,0.00018498,2]
[379111100,1755147051970,-546.96241014,0.00018498,2]
[379111101,1755147051979,-460.0,0.00018498,2]
[379111102,1755147051988,-460.0,0.00018498,2]
[379111103,1755147051997,-460.0,0.00018498,2]
[379111104,1755147052007,-460.0,0.00018498,2]
[379111105,1755147052016,-460.0,0.00018498,2]
[379111106,1755147052025,-460.0,0.00018498,2]
[379111107,1755147052035,-554.8,0.00018498,2]
[379111108,1755147052045,-460.0,0.00018498,2]
[379111109,1755147052054,-460.0,0.00018498,2]
[379111110,1755147052063,-460.0,0.00018498,2]
[379111111,1755147052072,-460.0,0.00018498,2]
[379111112,1755147052082,-487.47,0.00018498,2]
[379111113,1755147052091,-460.0,0.00018498,2]
[379111114,1755147052100,-460.0,0.00018498,2]
[379111115,1755147052110,-460.0,0.00018498,2]
[379111116,1755147052119,-460.0,0.00018498,2]
[379111117,1755147052128,-460.0,0.00018498,2]
[379111118,1755147052138,-460.0,0.00018498,2]
[379111119,1755147052147,-531.53,0.00018498,2]
[379111120,1755147052157,-460.0,0.00018498,2]
[379111121,1755147052166,-460.0,0.00018498,2]
[379111122,1755147052176,-460.0,0.00018498,2]
[379111123,1755147052185,-151.0,0.00018498,2]
[379111124,1755147052194,-990.7,0.00018498,2]
[379111125,1755147052203,-460.0,0.00018498,2]
[379111126,1755147052212,-151.0,0.00018498,2]
[379111127,1755147052222,-460.0,0.00018498,2]
[379111128,1755147052231,-460.0,0.00018498,2]
[379111129,1755147052240,-460.0,0.00018498,2]
[379111130,1755147052250,-500.0,0.00018498,2]
[379111131,1755147052259,-460.0,0.00018498,2]
[379111132,1755147052268,-460.0,0.00018498,2]
[379111133,1755147052277,-177.42896435,0.00018498,2]
[379111134,1755147052287,-460.0,0.00018498,2]
[379111135,1755147052296,-541.46,0.00018498,2]
[379111136,1755147052305,-460.0,0.00018498,2]
[379111137,1755147052315,-251.441035,0.00018498,2]
[379111138,1755147052323,-521.22,0.00018498,2]
[379111139,1755147052334,-251.441035,0.00018498,2]
[379111140,1755147052343,-460.0,0.00018498,2]
[379111142,1755147052353,-460.0,0.00018498,2]
[379111143,1755147052363,-460.0,0.00018498,2]
[379111144,1755147052372,-568.19,0.00018498,2]
[379111145,1755147052381,-460.0,0.00018498,2]
[379111146,1755147052390,-460.0,0.00018498,2]
[379111147,1755147052400,-460.0,0.00018498,2]
[379111148,1755147052410,-640.39,0.00018498,2]
[379111149,1755147052420,-460.0,0.00018498,2]
[379111150,1755147052432,-460.0,0.00018498,2]
[379111151,1755147052441,-460.0,0.00018498,2]
[379111152,1755147052451,-460.0,0.00018498,2]
[379111153,1755147052460,-465.36581217,0.00018498,2]
[379111154,1755147052471,-933.62,0.00018498,2]
[379111155,1755147052480,-460.0,0.00018498,2]
[379111156,1755147052490,-460.0,0.00018498,2]
[379111157,1755147052499,-1028.05,0.00018498,2]
[379111158,1755147052509,-460.0,0.00018498,2]
[379111159,1755147052518,-460.0,0.00018498,2]
[379111160,1755147052527,-460.0,0.00018498,2]
[379111161,1755147052537,-460.0,0.00018498,2]
[379111162,1755147052545,-460.0,0.00018498,2]
[379111163,1755147052555,-151.0,0.00018498,2]
[379111164,1755147052564,-163.239312,0.00018498,2]
[379111165,1755147052574,-151.0,0.00018499,2]
[379111166,1755147052584,-151.0,0.00018499,2]
[379111167,1755147052593,-151.0,0.00018499,2]
[379111168,1755147052602,-422.273246,0.00018499,2]
[379111169,1755147052612,-422.273246,0.00018499,2]
[379111170,1755147052621,-151.0,0.00018499,2]
[379111171,1755147052630,-151.533282,0.00018499,2]
[379111172,1755147052639,-151.0,0.00018499,2]
[379111173,1755147052649,-151.0,0.00018499,2]
[379111174,1755147052659,-151.0,0.00018499,2]
[379111175,1755147052669,-151.0,0.00018499,2]
[379111176,1755147052678,-151.0,0.00018499,2]
[379111177,1755147052688,-151.0,0.00018499,2]
[379111178,1755147052697,-151.0,0.00018499,2]
[379111179,1755147052707,-387.802145,0.00018499,2]
[379111180,1755147052717,-387.802145,0.00018499,2]
[379111181,1755147052726,-466.660348,0.00018499,2]
[379111182,1755147052735,-466.660348,0.00018499,2]
[379111183,1755147052744,-151.0,0.00018499,2]
[379111184,1755147052753,-151.0,0.00018499,2]
[379111185,1755147052764,-257.678167,0.00018499,2]
[379111186,1755147052773,-257.678167,0.00018499,2]
[379111187,1755147052782,-151.0,0.00018499,2]
[379111188,1755147052791,-500.0,0.000185,2]
[379111189,1755147052801,-151.0,0.000185,2]
[379111190,1755147052811,-422.273246,0.000185,2]
[379111191,1755147052821,-422.273246,0.000185,2]
[379111192,1755147052830,-345.000102,0.000185,2]
[379111193,1755147052840,-345.000102,0.000185,2]
[379111194,1755147052849,-151.0,0.000185,2]
[379111195,1755147052859,-151.0,0.000185,2]
[379111196,1755147052868,-153.848383,0.000185,2]
[379111197,1755147052877,-228.59368,0.000185,2]
[379111198,1755147052886,-466.660348,0.000185,2]
[379111199,1755147052895,-466.660348,0.000185,2]
[379111200,1755147052904,-151.0,0.000185,2]
[379111201,1755147052913,-460.0,0.000185,2]
[379111202,1755147052923,-460.0,0.000185,2]
[379111203,1755147052932,-151.0,0.000185,2]
[379111204,1755147052941,-460.0,0.000185,2]
[379111205,1755147052950,-460.0,0.000185,2]
[379111206,1755147052959,-445.819043,0.000185,2]
[379111207,1755147052968,-151.0,0.000185,2]
[379111208,1755147052977,-307.8698787,0.000185,2]
[379111209,1755147052987,-311.2080101,0.000185,2]
[379111210,1755147052996,-166.6625486,0.000185,2]
[379111211,1755147053005,-600.7079111,0.000185,2]
[379111212,1755147053015,-460.0,0.000185,2]
[379111213,1755147053024,-251.441035,0.000185,2]
[379111214,1755147053033,-251.441035,0.000185,2]
[379111215,1755147053042,-460.0,0.000185,2]
[379111216,1755147053052,-215.59581046,0.0001859,3]
[379111217,1755147053062,-263.34407793,0.0001859,3]
[379111218,1755147053071,-151.0,0.0001859,3]
[379111219,1755147053080,-245.99707792,0.0001859,3]
[379111220,1755147053090,-500.0,0.0001859,3]
[379111221,1755147053099,-151.0,0.0001859,3]
[379111222,1755147053108,-151.47010965,0.0001859,2]
[379111223,1755147053118,-151.0,0.0001859,2]
[379111224,1755147053127,-500.0,0.0001859,2]
[379111225,1755147053136,-151.0,0.0001859,3]
[379111226,1755147053146,-616.25821213,0.0001859,3]
[379111227,1755147053155,-549.2299391,0.0001859,3]
[379111228,1755147053164,-199.38118987,0.0001859,3]
[379111229,1755147053173,-549.07557882,0.0001859,3]
[379111230,1755147053183,-500.0,0.0001859,3]
[379111231,1755147053193,-151.0,0.0001859,3]
[379111232,1755147053202,-151.0,0.00018599,2]
[379111233,1755147053211,-230.301825,0.00018599,2]
[379111234,1755147053221,-151.0,0.00018599,2]
[379111235,1755147053230,-151.0,0.00018599,2]
[379111236,1755147053240,-151.634012,0.000186,2]
[379111237,1755147053249,-151.0,0.000186,2]
[379111238,1755147053259,-151.0,0.000186,2]
[379111239,1755147053268,-151.0,0.000186,2]
[379111240,1755147053277,-151.0,0.000186,2]
[379111241,1755147053286,-151.0,0.000186,2]
[379111242,1755147053296,-151.0,0.000186,2]
[379111243,1755147053305,-151.0,0.000186,2]
[379111244,1755147053314,-151.0,0.000186,2]
[379111245,1755147053324,-166.5,0.000186,2]
[379111246,1755147053333,-298.44192,0.000186,2]
[379111247,1755147053342,-151.402994,0.000186,2]
[379111248,1755147053353,-151.0,0.000186,2]
[379111249,1755147053362,-151.0,0.000186,2]
[379111250,1755147053372,-151.0,0.000186,2]
[379111251,1755147053381,-151.0,0.000186,2]
[379111252,1755147053393,-422.273246,0.000186,2]
[379111253,1755147053402,-422.273246,0.000186,2]
[379111254,1755147053412,-151.0,0.000186,2]
[379111255,1755147053422,-151.0,0.000186,2]
[379111256,1755147053435,-345.000102,0.000186,2]
[379111257,1755147053445,-345.000102,0.000186,2]
[379111258,1755147053454,-151.0,0.000186,2]
[379111259,1755147053463,-151.0,0.000186,2]
[379111260,1755147053474,-151.0,0.000186,2]
[379111261,1755147053639,-151.0,0.000186,2]
[379111262,1755147053649,-151.0,0.000186,2]
[379111263,1755147053659,-387.802145,0.000186,2]
[379111264,1755147053667,-387.802145,0.000186,2]
[379111265,1755147053677,-151.0,0.000186,2]
[379111266,1755147053686,-151.0,0.000186,2]
[379111267,1755147053695,-257.678167,0.000186,2]
[379111268,1755147053704,-257.678167,0.000186,2]
[379111269,1755147053714,-151.0,0.00018601,2]
[379111270,1755147053723,-151.0,0.00018601,2]
[379111271,1755147053732,-151.0,0.00018601,2]
[379111272,1755147053742,-158.516526,0.00018601,2]
[379111273,1755147053751,-151.0,0.00018601,2]
[379111274,1755147053760,-151.0,0.00018601,2]
[379111275,1755147053769,-151.0,0.00018601,2]
[379111276,1755147053779,-151.0,0.00018601,2]
[379111277,1755147053788,-151.0,0.000187,2]
[379111278,1755147053798,-151.0,0.000187,2]
[379111279,1755147053808,-151.0,0.000187,2]
[379111280,1755147053818,-151.0,0.00018702,2]
[379111281,1755147053828,-151.0,0.00018702,2]
[379111282,1755147053837,-151.0,0.00018702,2]
[379111283,1755147053846,-151.0,0.00018702,2]
[379111284,1755147053856,-151.0,0.00018702,2]
[379111285,1755147053866,-168.935916,0.00018703,2]
[379111286,1755147053876,-168.935916,0.00018703,2]
[379111287,1755147053885,-168.935916,0.00018705,2]
[379111288,1755147053895,-168.935916,0.00018711,2]
[379111289,1755147053905,-158.944388,0.00018748,3]
[379111290,1755147053915,-460.0,0.00018758,2]
[379111291,1755147053924,-737.33,0.00018758,2]
[379111292,1755147053933,-999.32,0.00018758,2]
[379111293,1755147053942,-2725.83,0.00018758,2]
[379111294,1755147053952,-688.29,0.00018758,2]
[379111295,1755147053962,-460.0,0.00018758,2]
[379111296,1755147053971,-460.0,0.00018759,2]
[379111297,1755147053980,-460.0,0.00018759,2]
[379111298,1755147053990,-460.0,0.00018759,2]
[379111299,1755147054000,-881.73,0.00018759,2]
[379111300,1755147054009,-530.02,0.00018759,2]
[379111301,1755147054019,-460.0,0.00018759,2]
[379111302,1755147054028,-5177.4,0.00018759,2]
[379111303,1755147054037,-460.0,0.00018759,2]
[379111304,1755147054047,-460.0,0.00018759,2]
[379111305,1755147054056,-4740.4,0.00018759,2]
[379111306,1755147054065,-519.24060226,0.00018759,2]
[379111307,1755147054074,-460.0,0.00018759,2]
[379111308,1755147054084,-460.0,0.00018759,2]
[379111309,1755147054093,-1030.72,0.00018759,2]
[379111310,1755147054102,-460.0,0.00018759,2]
[379111311,1755147054111,-460.0,0.00018759,2]
[379111312,1755147054121,-460.0,0.00018759,2]
[379111313,1755147054131,-2309.85,0.00018759,2]
[379111314,1755147054141,-473.43473824,0.00018759,2]
[379111315,1755147054150,-623.34,0.00018759,2]
[379111316,1755147054160,-460.0,0.00018759,2]
[379111317,1755147054170,-460.0,0.00018759,2]
[379111318,1755147054179,-1069.1,0.00018759,2]
[379111319,1755147054188,-460.0,0.00018759,2]
[379111320,1755147054197,-460.0,0.00018759,2]
[379111321,1755147054207,-2438.36,0.00018759,2]
[379111322,1755147054216,-4467.82,0.00018759,2]
[379111323,1755147054225,-460.0,0.00018759,2]
[379111324,1755147054234,-472.41,0.00018759,2]
[379111325,1755147054244,-460.0,0.00018759,2]
[379111326,1755147054253,-460.0,0.00018759,2]
[379111327,1755147054262,-550.96,0.00018759,2]
[379111328,1755147054272,-7626.84,0.00018759,2]
[379111329,1755147054281,-460.0,0.00018759,2]
[379111330,1755147054291,-251.34201835,0.00018759,2]
[379111331,1755147054300,-522.67,0.00018759,2]
[379111332,1755147054309,-460.0,0.00018759,2]
[379111333,1755147054319,-178.59140705,0.00018759,2]
[379111334,1755147054337,-325.84716139,0.00018759,2]
[379111335,1755147054739,-460.0,0.00018221,2]
[379111336,1755147054748,-433.97143156,0.00018759,2]
[379111337,1755147054758,-460.0,0.00018759,2]
[379111338,1755147054767,-460.0,0.00018759,2]
[379111339,1755147054776,-466.6819424,0.00018759,2]
[379111340,1755147054785,-638.97,0.00018759,2]
[379111341,1755147054795,-505.15,0.00018759,2]
[379111342,1755147054803,-1275.63,0.00018759,2]
[379111343,1755147054813,-151.0,0.00018759,2]
[379111344,1755147054821,-1225.78,0.00018759,2]
[379111345,1755147054831,-3103.64,0.00018759,2]
[379111346,1755147054840,-649.22264784,0.00018759,2]
[379111347,1755147054924,-678.82984021,0.00018759,2]
[379111351,1755147485318,418.653105,0.00013699,2]
[379111367,1755147677359,159.73834537,0.00017572,2]
[379111368,1755147703599,-2000.0,0.000182,2]
[379111369,1755147703623,-2000.0,0.000182,3]
[379111370,1755147703653,-300.0,0.000182,2]
[379111371,1755147703683,-151.0,0.00018201,2]
[379111372,1755147703712,-151.0,0.00018201,2]
[379111373,1755147703736,-151.0,0.00018201,2]
[379111374,1755147703763,-151.0,0.00018201,2]
[379111375,1755147703788,-151.0,0.00018201,2]
[379111376,1755147703814,-151.0,0.00018201,2]
[379111377,1755147703840,-469.718066,0.00018201,2]
[379111378,1755147703865,-151.0,0.00018201,2]
[379111379,1755147703890,-151.0,0.00018201,2]
[379111380,1755147703915,-286.47394899,0.00018201,2]
[379111381,1755147703940,-1200.0,0.00018207,2]
[379111382,1755147703965,-502.71062678,0.00018208,2]
[379111383,1755147703990,-460.0,0.00018208,2]
[379111384,1755147704015,-460.0,0.00018208,2]
[379111385,1755147704040,-460.0,0.00018208,2]
[379111386,1755147704065,-460.0,0.00018208,2]
[379111387,1755147704090,-460.0,0.00018208,2]
[379111388,1755147704116,-460.0,0.00018208,2]
[379111389,1755147704142,-460.0,0.00018208,2]
[379111390,1755147704169,-460.0,0.00018208,2]
[379111391,1755147704194,-460.0,0.00018208,2]
[379111392,1755147704220,-460.0,0.00018208,2]
[379111393,1755147704246,-460.0,0.00018208,2]
[379111394,1755147704271,-756.55,0.00018208,2]
[379111395,1755147704298,-665.12,0.00018208,2]
[379111396,1755147704324,-460.0,0.00018208,2]
[379111397,1755147704349,-999.91,0.00018208,2]
[379111398,1755147704375,-460.0,0.00018208,2]
[379111399,1755147704402,-2539.17,0.00018208,2]
[379111400,1755147704428,-460.0,0.00018208,2]
[379111401,1755147704453,-460.0,0.00018209,2]
[379111402,1755147704479,-840.28,0.00018209,2]
[379111403,1755147704505,-672.63,0.00018209,2]
[379111404,1755147704530,-578.27,0.00018209,2]
[379111405,1755147704555,-461.17,0.00018209,2]
[379111406,1755147704580,-1116.17,0.00018209,2]
[379111407,1755147704606,-1091.72,0.00018209,2]
[379111408,1755147704632,-1484.07,0.00018209,2]
[379111409,1755147704660,-2916.32,0.00018209,2]
[379111410,1755147704687,-460.0,0.00018209,2]
[379111411,1755147704712,-460.0,0.00018209,2]
[379111412,1755147704739,-4915.79,0.00018209,2]
[379111413,1755147704766,-460.0,0.00018209,2]
[379111414,1755147704791,-460.0,0.00018209,2]
[379111415,1755147704816,-460.0,0.00018209,2]
[379111416,1755147704841,-460.0,0.00018209,2]
[379111417,1755147704867,-462.06107763,0.00018209,2]
[379111418,1755147704893,-460.0,0.00018209,2]
[379111419,1755147704918,-460.0,0.00018209,2]
[379111420,1755147704944,-808.25,0.00018209,2]
[379111421,1755147704971,-460.0,0.00018209,2]
[379111422,1755147704997,-588.66,0.00018209,2]
[379111423,1755147705023,-460.0,0.00018209,2]
[379111424,1755147705048,-460.0,0.00018209,2]
[379111425,1755147705073,-558.02,0.00018209,2]
[379111426,1755147705098,-460.0,0.00018209,2]
[379111427,1755147705124,-460.0,0.00018209,2]
[379111428,1755147705151,-505.01,0.00018209,2]
[379111429,1755147705176,-1589.12,0.00018209,2]
[379111430,1755147705198,-460.0,0.00018209,2]
[379111431,1755147705222,-1009.11,0.00018209,2]
[379111432,1755147705244,-460.0,0.00018209,2]
[379111433,1755147705267,-3675.6962806,0.00018209,2]
[379111434,1755147778348,2339.07,0.00023,30]
[379111436,1755147958433,1761.0,0.00018099,2]
[379111437,1755147959240,1761.0,0.00018099,2]
[379111438,1755147959937,1761.0,0.00018099,2]
[379111439,1755147960699,1761.0,0.00018099,2]
[379111440,1755147961392,1761.0,0.00018099,2]
[379111441,1755147962152,216.67404869,0.00018099,2]
[379111458,1755148109742,509.0,0.00026,120]
[379111531,1755148235559,-335.14041785,0.00018201,2]
[379111532,1755148235569,-185.71,0.00018201,3]
[379111533,1755148235578,-95.06633435,0.00018201,3]
[379111534,1755148235682,-462.08366565,0.00018201,3]
[379111535,1755148235692,-300.0,0.00018206,2]
[379111536,1755148235702,-716.0,0.00018206,2]
[379111537,1755148235711,-460.0,0.00018206,2]
[379111538,1755148235721,-460.0,0.00018206,2]
[379111539,1755148235730,-4710.97,0.00018207,2]
[379111540,1755148235740,-60.83178845,0.00018207,2]
[379111580,1755148238006,-713.73821155,0.00018207,2]
[379111581,1755148238016,-460.0,0.00018207,2]
[379111582,1755148238025,-483.97,0.00018207,2]
[379111583,1755148238034,-603.74,0.00018207,2]
[379111584,1755148238044,-3994.7,0.00018207,2]
[379111585,1755148238053,-967.06,0.00018207,2]
[379111586,1755148238062,-729.98,0.00018207,2]
[379111587,1755148238071,-460.0,0.00018207,2]
[379111588,1755148238080,-460.0,0.00018207,2]
[379111589,1755148238090,-2235.36570032,0.00018207,2]
[379111648,1755148240447,-460.0,0.00018206,2]
[379111649,1755148240457,-1995.53429968,0.00018207,2]
[379111650,1755148240466,-460.0,0.00018207,2]
[379111652,1755148240475,-2071.37,0.00018207,2]
[379111654,1755148240485,-4591.1,0.00018207,2]
[379111655,1755148240494,-460.0,0.00018207,2]
[379111656,1755148240503,-460.0,0.00018207,2]
[379111657,1755148240512,-489.29534851,0.00018207,2]
[379111658,1755148240521,-460.0,0.00018207,2]
[379111659,1755148240530,-6705.04,0.00018207,2]
[379111660,1755148240539,-725.03,0.00018207,2]
[379111661,1755148240548,-824.44,0.00018207,2]
[379111662,1755148240558,-958.25,0.00018207,2]
[379111663,1755148240567,-644.6,0.00018207,2]
[379111664,1755148240576,-460.0,0.00018207,2]
[379111665,1755148240585,-2602.46,0.00018207,2]
[379111666,1755148240594,-554.17,0.00018207,2]
[379111667,1755148240604,-2794.81,0.00018207,2]
[379111668,1755148240613,-1127.28,0.00018207,2]
[379111669,1755148240622,-4514.68,0.00018207,2]
[379111670,1755148240631,-460.0,0.00018207,2]
[379111671,1755148240640,-1031.3888,0.00018207,2]
[379111672,1755148240650,-460.0,0.00018208,2]
[379111673,1755148240660,-460.0,0.00018208,2]
[379111674,1755148240669,-460.0,0.00018208,2]
[379111675,1755148240679,-460.0,0.00018208,2]
[379111676,1755148240689,-460.0,0.00018208,2]
[379111677,1755148240700,-464.44428695,0.00018208,2]
[379111678,1755148240710,-460.0,0.00018208,2]
[379111679,1755148240719,-108.79476562,0.00018208,2]
[379111718,1755148541818,3137.0,0.00018108,2]
[379111720,1755148576590,397.720449,0.00013699,2]
[379111722,1755148915391,247.41209715,0.00018106,2]
[379111727,1755149040792,4952.0,0.00018102,2]
[379111765,1755149304394,330.68959107,0.0001782,2]
[379111766,1755149306167,1322.75836427,0.0001782,2]
[379111767,1755149307982,2976.20631962,0.0001782,2]
[379111769,1755149310123,5291.0334571,0.0001782,2]
[379111770,1755149312794,8258.97253694,0.0001782,2]
[379111776,1755149325428,224.23837532,0.0001782,2]
[379111777,1755149327604,896.05654778,0.0001782,2]
[379111903,1755149435978,-812.46564961,0.00018125,2]
[379111904,1755149436017,-4139.53435039,0.00018125,2]
[379111905,1755149436026,-1200.0,0.00018194,2]
[379111906,1755149436035,-300.0,0.00018195,2]
[379111907,1755149436044,-300.0,0.00018195,2]
[379111908,1755149436054,-300.0,0.00018195,2]
[379111909,1755149436063,-300.0,0.00018195,2]
[379111910,1755149436073,-10689.59461896,0.00018196,2]
[379111911,1755149436087,-371.42,0.00018196,3]
[379111913,1755149436096,-460.0,0.00018196,2]
[379111915,1755149436105,-540.72938646,0.00018196,2]
[379111916,1755149436114,-460.0,0.00018196,2]
[379111918,1755149436123,-460.0,0.00018196,2]
[379111920,1755149436132,-460.0,0.00018196,2]
[379111922,1755149436143,-460.0,0.00018196,2]
[379111924,1755149436152,-460.0,0.00018196,2]
[379111925,1755149436161,-460.0,0.00018196,2]
[379111927,1755149436175,-557.72164419,0.00018196,2]
[379111952,1755149438202,-213.22835581,0.00018196,2]
[379111953,1755149438212,-1051.72,0.00018196,2]
[379111954,1755149438223,-2761.93,0.00018196,2]
[379111955,1755149438232,-638.77,0.00018196,2]
[379111956,1755149438243,-460.0,0.00018196,2]
[379111957,1755149438255,-460.0,0.00018196,2]
[379111958,1755149438264,-460.0,0.00018196,2]
[379111959,1755149438274,-460.0,0.00018196,2]
[379111960,1755149438284,-460.0,0.00018196,2]
[379111961,1755149438293,-151.0,0.00018197,2]
[379111962,1755149438303,-250.0,0.00018197,2]
[379111963,1755149438312,-151.0,0.00018197,2]
[379111964,1755149438321,-154.94759747,0.00018197,2]
[379111965,1755149438331,-151.0,0.00018197,2]
[379111966,1755149438342,-9776.7939233,0.00018197,2]
[379111968,1755149438353,-500.0,0.00018197,2]
[379111970,1755149438363,-223.42694523,0.00018201,2]
[379111971,1755149438374,-1446.92194564,0.00018203,2]
[379111972,1755149438383,-460.0,0.00018203,2]
[379111973,1755149438394,-460.0,0.00018203,2]
[379111974,1755149438403,-800.21,0.00018203,2]
[379111976,1755149438413,-460.0,0.00018203,2]
[379111978,1755149438422,-502.14,0.00018203,2]
[379111980,1755149438435,-3828.25,0.00018203,2]
[379111982,1755149438444,-460.0,0.00018203,2]
[379111984,1755149438455,-4678.59,0.00018203,2]
[379111986,1755149438464,-460.0,0.00018203,2]
[379111988,1755149438473,-1101.73,0.00018203,2]
[379111990,1755149438482,-460.0,0.00018203,2]
[379111992,1755149438491,-460.0,0.00018203,2]
[379111994,1755149438500,-578.59,0.00018203,2]
[379111996,1755149438509,-460.0,0.00018203,2]
[379111998,1755149438518,-2138.33,0.00018203,2]
[379112000,1755149438528,-1013.97,0.00018203,2]
[379112002,1755149438537,-4399.81,0.00018203,2]
[379112004,1755149438547,-4333.78,0.00018203,2]
[379112006,1755149438559,-460.0,0.00018203,2]
[379112008,1755149438568,-460.0,0.00018203,2]
[379112010,1755149438577,-6460.85,0.00018203,2]
[379112012,1755149438587,-809.25,0.00018203,2]
[379112014,1755149438596,-460.0,0.00018203,2]
[379112016,1755149438605,-480.29,0.00018203,2]
[379112018,1755149438614,-460.0,0.00018203,2]
[379112020,1755149438623,-589.0,0.00018203,2]
[379112022,1755149438635,-2940.49,0.00018203,2]
[379112024,1755149438644,-1116.98,0.00018203,2]
[379112026,1755149438653,-1065.4,0.00018203,2]
[379112028,1755149438662,-460.0,0.00018203,2]
[379112030,1755149438672,-460.0,0.00018203,2]
[379112032,1755149438682,-461.00436842,0.00018203,2]
[379112034,1755149438691,-1544.78,0.00018203,2]
[379112036,1755149438701,-460.0,0.00018203,2]
[379112038,1755149438711,-460.0,0.00018203,2]
[379112040,1755149438721,-462.48415978,0.00018203,2]
[379112042,1755149438730,-460.0,0.00018203,2]
[379112044,1755149438739,-460.0,0.00018203,2]
[379112046,1755149438749,-460.0,0.00018204,2]
[379112048,1755149438758,-460.0,0.00018204,2]
[379112050,1755149438767,-460.0,0.00018204,2]
[379112052,1755149438776,-704.76,0.00018204,2]
[379112054,1755149438786,-460.0,0.00018204,2]
[379112056,1755149438795,-267.62847094,0.00018204,2]
[379112058,1755149438805,-460.0,0.00018204,2]
[379112060,1755149438815,-460.0,0.00018204,2]
[379112062,1755149438825,-460.0,0.00018204,2]
[379112064,1755149438834,-460.0,0.00018204,2]
[379112065,1755149438844,-460.0,0.00018204,2]
[379112067,1755149438853,-460.0,0.00018204,2]
[379112070,1755149438863,-1372.05,0.00018204,2]
[379112072,1755149438873,-2295.5,0.00018204,2]
[379112073,1755149438883,-1075.86,0.00018204,2]
[379112075,1755149438892,-238.92173663,0.00018204,2]
[379112077,1755149438902,-611.54243248,0.00018204,2]
[379112079,1755149438911,-460.0,0.00018204,2]
[379112081,1755149438920,-460.0,0.00018204,2]
[379112083,1755149438930,-460.0,0.00018204,2]
[379112085,1755149438940,-460.0,0.00018204,2]
[379112087,1755149438949,-460.0,0.00018204,2]
[379112089,1755149438959,-460.0,0.00018204,2]
[379112091,1755149438968,-460.0,0.00018204,2]
[379112093,1755149438978,-460.0,0.00018204,2]
[379112095,1755149438987,-460.0,0.00018204,2]
[379112097,1755149438996,-840.85,0.00018204,2]
[379112099,1755149439005,-460.0,0.00018204,2]
[379112101,1755149439014,-878.7,0.00018204,2]